[Event "RUS-chT Premier 2019"]
[Site "Sochi"]
[Date "2019.05.09"]
[Round "8.17"]
[White "Ionov, Sergey"]
[Black "Rozum, Ivan"]
[Result "0-1"]
[ECO "E11"]
[WhiteElo "2530"]
[BlackElo "2568"]
[Annotator "ChessBase"]
[PlyCount "58"]
[EventDate "2019.05.01"]
[EventType "team-tourn"]
[EventCountry "RUS"]
[SourceTitle "playchess.com"]
[Source "ChessBase"]
[SourceQuality "1"]
[TimeControl "40/5400+30:1800+30"]

1. d4 {[%emt 0:00:01]} Nf6 {[%emt 0:00:00]} 2. c4 {[%emt 0:01:34]} e6 {[%emt 0:00:00]} 3. Nf3 {[%emt 0:01:35]} Bb4+ {[%emt 0:00:06]} 4. Bd2 {[%emt 0:01:15]} Bxd2+ {[%emt 0:02:29]} 5. Qxd2 {[%emt 0:04:53]} O-O {[%emt 0:03:50]} 6. g3 {[%emt 0:04:43]} d5 {[%emt 0:01:55]} 7. Bg2 {[%emt 0:00:42]} c6 {[%emt 0:00:10]} 8. O-O {[%emt 0:01:19]} Nbd7 {[%emt 0:00:05]} 9. Na3 {[%emt 0:15:38]} b6 {[%emt 0:02:32]} 10. Ne5 {[%emt 0:06:02]} Bb7 {[%emt 0:04:18]} 11. Rac1 {[%emt 0:04:45]} Rc8 {[%emt 0:07:32]} 12. cxd5 {[%emt 0:04:46]} exd5 {[%emt 0:02:02]} 13. Bh3 {[%emt 0:06:01]} Qe7 {[%emt 0:04:16]} 14. Qe3 {[%emt 0:07:45]} Rce8 {[%emt 0:15:27]} 15. Nxc6 {[%emt 0:12:20]} Qd6 {[%emt 0:14:22]} 16. Nb5 {[%emt 0:13:05]} Qxc6 {[%emt 0:00:15]} 17. Qb3 {[%emt 0:01:57]} Nc5 {[%emt 0:01:01]} 18. dxc5 {[%emt 0:00:06]} bxc5 {[%emt 0:03:41]} 19. Nxa7 {[%emt 0:02:56]} Qa6 {[%emt 0:00:12]} 20. Nb5 {[%emt 0:01:26]} Rxe2 {[%emt 0:09:07]} 21. Rxc5 {[%emt 0:04:05]} Ne4 {[%emt 0:00:17]} 22. Rcc1 {[%emt 0:00:23]} Qh6 {[%emt 0:03:48]} 23. Nd4 {[%emt 0:02:28]} Rxf2 {[%emt 0:00:53]} 24. Bg2 {[%emt 0:01:37]} Qd2 {[%emt 0:04:01]} 25. Bxe4 {[%emt 0:00:34]} Rxf1+ {[%emt 0:00:12]} 26. Rxf1 {[%emt 0:00:02]} Qxd4+ {[%emt 0:00:05]} 27. Rf2 {[%emt 0:00:01]} dxe4 {[%emt 0:00:26]} 28. Qxb7 {[%emt 0:00:05]} e3 {[%emt 0:00:14]} 29. Rf4 {[%emt 0:00:08]} Qd1+ {[%emt 0:00:41]} 0-1

[Event "RUS-chT Premier 2019"]
[Site "Sochi"]
[Date "2019.05.09"]
[Round "8.18"]
[White "Sychev, Klementy"]
[Black "Ivanov, Sergey"]
[Result "0-1"]
[ECO "C18"]
[WhiteElo "2574"]
[BlackElo "2504"]
[Annotator "ChessBase"]
[PlyCount "46"]
[EventDate "2019.05.01"]
[EventType "team-tourn"]
[EventCountry "RUS"]
[SourceTitle "playchess.com"]
[Source "ChessBase"]
[SourceQuality "1"]
[TimeControl "40/5400+30:1800+30"]

1. e4 {[%emt 0:00:00]} e6 {[%emt 0:00:00]} 2. d4 {[%emt 0:00:00]} d5 {[%emt 0:00:00]} 3. Nc3 {[%emt 0:00:00]} Bb4 {[%emt 0:00:00]} 4. e5 {[%emt 0:00:00]} Ne7 {[%emt 0:00:14]} 5. a3 {[%emt 0:00:00]} Bxc3+ {[%emt 0:00:06]} 6. bxc3 {[%emt 0:00:00]} c5 {[%emt 0:00:09]} 7. Qg4 {[%emt 0:00:00]} O-O {[%emt 0:00:14]} 8. Bd3 {[%emt 0:00:00]} f5 {[%emt 0:00:29]} 9. exf6 {[%emt 0:00:38]} Rxf6 {[%emt 0:00:06]} 10. Qh5 {[%emt 0:01:01]} h6 {[%emt 0:00:32]} 11. g4 {[%emt 0:18:23]} c4 {[%emt 0:01:30]} 12. g5 {[%emt 0:00:06]} g6 {[%emt 0:02:18]} 13. Qd1 {[%emt 0:00:53]} Rf7 {[%emt 0:02:08]} 14. Bxg6 {[%emt 0:01:16]} Nxg6 {[%emt 0:00:37]} 15. Qh5 {[%emt 0:00:03]} Ne7 {[%emt 0:07:58]} 16. Nf3 {[%emt 0:08:45]} Nbc6 {[%emt 0:05:50]} 17. g6 {[%emt 0:16:28]} Rxf3 {[%emt 0:29:51]} 18. Qxf3 {[%emt 0:01:14]} Nf5 {[%emt 0:01:32]} 19. g7 {[%emt 0:03:29]} e5 {[%emt 0:04:50]} 20. Qh5 {[%emt 0:06:47]} Bd7 {[%emt 0:05:36]} 21. dxe5 {[%emt 0:02:23]} Nxe5 {[%emt 0:00:44]} 22. Bf4 {[%emt 0:00:41]} Qf6 {[%emt 0:03:36]} 23. O-O-O {[%emt 0:01:17]} Nd3+ {[%emt 0:02:24]} 0-1

[Event "RUS-chT Premier 2019"]
[Site "Sochi"]
[Date "2019.05.09"]
[Round "8.20"]
[White "Khanin, Semen"]
[Black "Zvjaginsev, Vadim"]
[Result "0-1"]
[ECO "B09"]
[WhiteElo "2524"]
[BlackElo "2635"]
[Annotator "RC"]
[PlyCount "104"]
[EventDate "2019.05.01"]
[EventType "team-tourn"]
[EventCountry "RUS"]
[SourceTitle "playchess.com"]
[Source "ChessBase"]
[SourceQuality "1"]
[TimeControl "40/5400+30:1800+30"]

1. e4 {[%emt 0:00:00]} d6 {[%emt 0:00:00]} 2. d4 {[%emt 0:00:00]} Nf6 {[%emt 0:00:00]} 3. Nc3 {[%emt 0:00:00]} g6 {[%emt 0:00:00]} 4. f4 {[%emt 0:00:00]} Bg7 {[%emt 0:00:00]} 5. Nf3 {[%emt 0:00:00]} O-O {[%emt 0:00:19]} 6. Bd3 {[%emt 0:00:02]} Na6 {[%emt 0:00:49]} 7. O-O {[%emt 0:00:15]} c5 {[%emt 0:00:04]} 8. d5 {[%emt 0:00:04]} Bg4 {[%emt 0:00:05]} 9. Bc4 {[%emt 0:00:38]} Nc7 {[%emt 0:00:12]} 10. h3 {[%emt 0:00:35]} Bxf3 {[%emt 0:00:05]} 11. Qxf3 {[%emt 0:00:03]} a6 {[%emt 0:00:05]} 12. a4 {[%emt 0:00:04]} b6 {[%emt 0:00:03]} 13. Qd3 {[%emt 0:04:28]} Qc8 {[%emt 0:01:31]} 14. f5 {[%emt 0:00:07]} Nd7 {[%emt 0:01:06]} 15. Qg3 {[%emt 0:00:04]} Ne8 {[%emt 0:01:14]} 16. Bg5 {[%emt 0:07:09]} Bf6 {[%emt 0:03:28]} 17. h4 {[%emt 0:05:15]} Ng7 {[%emt 0:08:46]} 18. Bxf6 {[%emt 0:09:13]} Nh5 {[%emt 0:03:23]} 19. Qh3 {[%emt 0:18:13]} Nhxf6 {[%emt 0:02:25]} 20. g4 {[%emt 0:02:02]} Ne5 {[%emt 0:04:43]} 21. Be2 {[%emt 0:00:11]} h6 {[%emt 0:06:53]} 22. g5 {[%emt 0:04:46]} Nh7 {[%emt 0:00:10]} 23. Qg3 {[%emt 0:16:02]} Kh8 {[%emt 0:12:22]} 24. fxg6 {[%emt 0:04:23]} fxg6 {[%emt 0:00:20]} 25. gxh6 {[%emt 0:01:31]} Rg8 {[%emt 0:01:36]} 26. Kh2 {[%emt 0:01:49]} Nf6 {[%emt 0:04:26]} 27. Rg1 {[%emt 0:07:43]} Qf8 {[%emt 0:01:38]} 28. Qg5 {[%emt 0:01:20]} Kh7 {[%emt 0:01:27]} 29. b3 {[%emt 0:03:32]} Nf7 {[%emt 0:07:05]} 30. Qf4 {[%emt 0:02:00]} Qxh6 {[%emt 0:01:06]} 31. Qxh6+ {[%emt 0:00:05]} Kxh6 {[%emt 0:00:12]} 32. Rg3 {[%emt 0:00:32]} Ne5 {[%emt 0:03:10]} 33. Rf1 {[%emt 0:02:36]} Rgf8 {[%emt 0:03:21]} 34. Rgg1 {[%emt 0:03:44]} a5 {[%emt 0:07:28]} 35. Rf4 {[%emt 0:05:05]} Nh5 {[%emt 0:02:21]} 36. Rff1 {[%emt 0:02:11]} Nf6 {[%emt 0:02:25]} 37. Rf4 {[%emt 0:00:16]} Rac8 {[%emt 0:01:35]} 38. Ba6 {[%emt 0:01:05]} Nh5 {[%emt 0:01:25]} 39. Rxf8 {[%emt 0:00:19]} Rxf8 {[%emt 0:00:07]} 40. Rf1 {[%emt 0:00:00]} Nf3+ {[%emt 0:00:00]} 41. Kh3 {[%emt 0:01:24]} Rf4 {[%emt 0:07:04]} 42. Be2 {[%emt 0:03:04]} Rxh4+ {[%emt 0:05:44]} 43. Kg2 {[%emt 0:00:17]} Nd2 {[%emt 0:01:58]} 44. Re1 {[%emt 0:04:42]} Nf4+ {[%emt 0:00:59]} 45. Kg3 {[%emt 0:01:12]} Kg5 {[%emt 0:00:55]} 46. Kf2 {[%emt 0:00:42]} Rh3 {[%emt 0:01:42]} 47. Rg1+ {[%emt 0:00:39]} Kf6 {[%emt 0:01:49]} 48. Ke1 {[%emt 0:00:16]} Nxb3 {[%emt 0:03:15]} 49. e5+ {[%emt 0:00:19]} Kxe5 {[%emt 0:00:54]} 50. Rg5+ {[%emt 0:00:12]} Kd4 {[%emt 0:00:43]} 51. Nb5+ {[%emt 0:00:06]} Ke3 {[%emt 0:00:39]} 52. Bf1 {[%emt 0:00:28]} Nd2 {[%emt 0:00:31]} 0-1

[Event "RUS-chT Premier 2019"]
[Site "Sochi"]
[Date "2019.05.09"]
[Round "8.21"]
[White "Kobalia, Mikhail"]
[Black "Tsydypov, Zhamsaran"]
[Result "1/2-1/2"]
[ECO "B31"]
[WhiteElo "2610"]
[BlackElo "2546"]
[Annotator "RC"]
[PlyCount "118"]
[EventDate "2019.05.01"]
[EventType "team-tourn"]
[EventCountry "RUS"]
[SourceTitle "playchess.com"]
[Source "ChessBase"]
[SourceQuality "1"]
[TimeControl "40/5400+30:1800+30"]

1. e4 {[%emt 0:00:00]} c5 {[%emt 0:00:14]} 2. Nf3 {[%emt 0:00:00]} Nc6 {[%emt 0:01:03]} 3. Bb5 {[%emt 0:00:03]} g6 {[%emt 0:00:26]} 4. Bxc6 {[%emt 0:00:19]} dxc6 {[%emt 0:00:32]} 5. d3 {[%emt 0:00:17]} Bg7 {[%emt 0:00:22]} 6. O-O {[%emt 0:00:13]} Nf6 {[%emt 0:00:25]} 7. Re1 {[%emt 0:00:41]} Nd7 {[%emt 0:06:38]} 8. a4 {[%emt 0:06:10]} Nf8 {[%emt 0:04:02]} 9. Nbd2 {[%emt 0:05:10]} e5 {[%emt 0:03:02]} 10. h3 {[%emt 0:01:35]} Ne6 {[%emt 0:04:12]} 11. Nc4 {[%emt 0:02:47]} Qc7 {[%emt 0:00:50]} 12. c3 {[%emt 0:02:35]} b6 {[%emt 0:02:30]} 13. b4 {[%emt 0:05:15]} cxb4 {[%emt 0:13:25]} 14. cxb4 {[%emt 0:00:04]} O-O {[%emt 0:00:33]} 15. Qc2 {[%emt 0:15:32]} Ba6 {[%emt 0:03:13]} 16. Bb2 {[%emt 0:12:26]} Bxc4 {[%emt 0:02:34]} 17. Qxc4 {[%emt 0:03:19]} Rfd8 {[%emt 0:01:59]} 18. Red1 {[%emt 0:00:27]} Rac8 {[%emt 0:02:06]} 19. Rac1 {[%emt 0:09:03]} Qd6 {[%emt 0:01:27]} 20. g3 {[%emt 0:02:14]} c5 {[%emt 0:01:24]} 21. bxc5 {[%emt 0:10:51]} Rxc5 {[%emt 0:01:05]} 22. Qa2 {[%emt 0:00:22]} Rxc1 {[%emt 0:04:58]} 23. Bxc1 {[%emt 0:00:29]} Nc5 {[%emt 0:01:02]} 24. Bg5 {[%emt 0:08:54]} Rc8 {[%emt 0:04:16]} 25. Qa1 {[%emt 0:02:28]} Qd7 {[%emt 0:03:02]} 26. Be3 {[%emt 0:01:31]} Qxh3 {[%emt 0:01:34]} 27. Qa3 {[%emt 0:02:24]} Bf6 {[%emt 0:14:33]} 28. Rc1 {[%emt 0:01:32]} Nb7 {[%emt 0:00:51]} 29. Bg5 {[%emt 0:01:54]} Bxg5 {[%emt 0:01:34]} 30. Nxg5 {[%emt 0:00:00]} Rxc1+ {[%emt 0:00:13]} 31. Qxc1 {[%emt 0:00:02]} Qd7 {[%emt 0:00:06]} 32. Nf3 {[%emt 0:00:45]} f6 {[%emt 0:03:13]} 33. Qc4+ {[%emt 0:00:27]} Kg7 {[%emt 0:00:10]} 34. d4 {[%emt 0:00:07]} exd4 {[%emt 0:01:13]} 35. Nxd4 {[%emt 0:00:03]} Nc5 {[%emt 0:00:07]} 36. a5 {[%emt 0:01:07]} Qg4 {[%emt 0:01:51]} 37. Qd5 {[%emt 0:03:16]} Qxe4 {[%emt 0:01:00]} 38. Qd8 {[%emt 0:00:31]} Qb7 {[%emt 0:02:20]} 39. axb6 {[%emt 0:03:07]} axb6 {[%emt 0:00:06]} 40. Nb5 {[%emt 0:00:00]} Ne6 {[%emt 0:00:00]} 41. Qd6 {[%emt 0:02:45]} Kf7 {[%emt 0:15:04]} 42. Qa3 {[%emt 0:00:37]} Qd7 {[%emt 0:00:46]} 43. Qa6 {[%emt 0:04:28]} Nd4 {[%emt 0:03:41]} 44. Nxd4 {[%emt 0:02:18]} Qxd4 {[%emt 0:00:11]} 45. Qb7+ {[%emt 0:00:08]} Kg8 {[%emt 0:02:16]} 46. Qa8+ {[%emt 0:03:10]} Kg7 {[%emt 0:00:41]} 47. Qb7+ {[%emt 0:00:01]} Kh6 {[%emt 0:00:33]} 48. Qh1+ {[%emt 0:00:02]} Kg5 {[%emt 0:02:43]} 49. Qxh7 {[%emt 0:00:02]} b5 {[%emt 0:01:16]} 50. Qh3 {[%emt 0:02:20]} Qg4 {[%emt 0:02:31]} 51. Qg2 {[%emt 0:01:49]} Qd1+ {[%emt 0:01:34]} 52. Kh2 {[%emt 0:00:02]} Qd4 {[%emt 0:02:30]} 53. f4+ {[%emt 0:03:15]} Kh6 {[%emt 0:00:17]} 54. Qa8 {[%emt 0:00:12]} f5 {[%emt 0:03:07]} 55. Kh3 {[%emt 0:01:58]} Qf6 {[%emt 0:00:47]} 56. Qb8 {[%emt 0:00:45]} Qb2 {[%emt 0:02:15]} 57. Qd8 {[%emt 0:01:52]} Kg7 {[%emt 0:02:19]} 58. Qe7+ {[%emt 0:00:49]} Kh6 {[%emt 0:00:10]} 59. Qh4+ {[%emt 0:00:09]} Kg7 {[%emt 0:00:03]} 1/2-1/2

[Event "RUS-chT Premier 2019"]
[Site "Sochi"]
[Date "2019.05.09"]
[Round "8.23"]
[White "Popov, Ivan"]
[Black "Kezin, Roman"]
[Result "1-0"]
[ECO "B47"]
[WhiteElo "2600"]
[BlackElo "2468"]
[Annotator "ChessBase"]
[PlyCount "71"]
[EventDate "2019.05.01"]
[EventType "team-tourn"]
[EventCountry "RUS"]
[SourceTitle "playchess.com"]
[Source "ChessBase"]
[SourceQuality "1"]
[TimeControl "40/5400+30:1800+30"]

1. e4 {[%emt 0:00:00]} c5 {[%emt 0:00:00]} 2. Nf3 {[%emt 0:00:00]} e6 {[%emt 0:00:00]} 3. d4 {[%emt 0:00:00]} cxd4 {[%emt 0:00:00]} 4. Nxd4 {[%emt 0:00:05]} Nc6 {[%emt 0:00:00]} 5. Nc3 {[%emt 0:00:18]} Qc7 {[%emt 0:00:00]} 6. a3 {[%emt 0:00:15]} a6 {[%emt 0:00:10]} 7. Be3 {[%emt 0:00:15]} b5 {[%emt 0:01:11]} 8. Nxc6 {[%emt 0:00:11]} Qxc6 {[%emt 0:00:44]} 9. Be2 {[%emt 0:00:13]} Bb7 {[%emt 0:01:49]} 10. O-O {[%emt 0:00:23]} Rc8 {[%emt 0:07:33]} 11. Qd3 {[%emt 0:00:33]} Nf6 {[%emt 0:07:50]} 12. Rfd1 {[%emt 0:00:21]} Be7 {[%emt 0:00:21]} 13. Bf3 {[%emt 0:01:18]} e5 {[%emt 0:24:36]} 14. Bg5 {[%emt 0:03:47]} Ng8 {[%emt 0:06:09]} 15. Bxe7 {[%emt 0:25:03]} Nxe7 {[%emt 0:00:11]} 16. a4 {[%emt 0:00:28]} b4 {[%emt 0:05:32]} 17. Na2 {[%emt 0:00:56]} a5 {[%emt 0:04:03]} 18. c3 {[%emt 0:02:07]} f5 {[%emt 0:14:37]} 19. exf5 {[%emt 0:05:47]} e4 {[%emt 0:12:03]} 20. Bh5+ {[%emt 0:00:51]} g6 {[%emt 0:01:05]} 21. Qd4 {[%emt 0:00:31]} O-O {[%emt 0:00:07]} 22. fxg6 {[%emt 0:04:26]} hxg6 {[%emt 0:00:34]} 23. Bg4 {[%emt 0:09:12]} Nf5 {[%emt 0:00:40]} 24. Qxd7 {[%emt 0:15:22]} e3 {[%emt 0:05:33]} 25. Qxc6 {[%emt 0:00:26]} exf2+ {[%emt 0:00:06]} 26. Kxf2 {[%emt 0:00:09]} Bxc6 {[%emt 0:00:57]} 27. Kg1 {[%emt 0:00:18]} Rce8 {[%emt 0:04:11]} 28. cxb4 {[%emt 0:05:11]} Ne3 {[%emt 0:00:40]} 29. Rd6 {[%emt 0:00:09]} Bxg2 {[%emt 0:00:44]} 30. Re1 {[%emt 0:04:23]} Re4 {[%emt 0:01:57]} 31. Be6+ {[%emt 0:04:41]} Kh8 {[%emt 0:00:00]} 32. Nc3 {[%emt 0:00:30]} Re5 {[%emt 0:00:30]} 33. Nd1 {[%emt 0:00:27]} Bf3 {[%emt 0:02:02]} 34. Nxe3 {[%emt 0:00:33]} Rf6 {[%emt 0:00:31]} 35. Ng2 {[%emt 0:02:33]} Rg5 {[%emt 0:00:29]} 36. Rd8+ {[%emt 0:00:49]} 1-0

[Event "RUS-chT Premier 2019"]
[Site "Sochi"]
[Date "2019.05.09"]
[Round "8.24"]
[White "Murzin, Volodar"]
[Black "Gordievsky, Dmitry"]
[Result "0-1"]
[ECO "B40"]
[WhiteElo "2407"]
[BlackElo "2585"]
[Annotator "ChessBase"]
[PlyCount "108"]
[EventDate "2019.05.01"]
[EventType "team-tourn"]
[EventCountry "RUS"]
[SourceTitle "playchess.com"]
[Source "ChessBase"]
[SourceQuality "1"]
[TimeControl "40/5400+30:1800+30"]

1. e4 {[%emt 0:00:00]} c5 {[%emt 0:00:00]} 2. Nf3 {[%emt 0:00:00]} e6 {[%emt 0:00:00]} 3. g3 {[%emt 0:00:00]} Nc6 {[%emt 0:00:38]} 4. Bg2 {[%emt 0:00:07]} Nf6 {[%emt 0:00:19]} 5. Qe2 {[%emt 0:00:48]} e5 {[%emt 0:01:20]} 6. O-O {[%emt 0:00:27]} Be7 {[%emt 0:00:40]} 7. d3 {[%emt 0:01:59]} h6 {[%emt 0:03:20]} 8. c3 {[%emt 0:00:59]} O-O {[%emt 0:05:03]} 9. Na3 {[%emt 0:00:36]} Re8 {[%emt 0:02:55]} 10. Nc4 {[%emt 0:04:24]} Bf8 {[%emt 0:01:24]} 11. Bd2 {[%emt 0:09:03]} d6 {[%emt 0:23:29]} 12. Ne3 {[%emt 0:02:31]} d5 {[%emt 0:06:44]} 13. Nh4 {[%emt 0:12:19]} Be6 {[%emt 0:00:23]} 14. Rfd1 {[%emt 0:04:33]} d4 {[%emt 0:07:56]} 15. Nf1 {[%emt 0:03:55]} g6 {[%emt 0:07:50]} 16. c4 {[%emt 0:03:12]} Nd7 {[%emt 0:03:53]} 17. h3 {[%emt 0:02:41]} Rb8 {[%emt 0:02:13]} 18. a4 {[%emt 0:03:24]} Kh7 {[%emt 0:00:25]} 19. Nh2 {[%emt 0:03:28]} Be7 {[%emt 0:01:03]} 20. N4f3 {[%emt 0:01:25]} Rg8 {[%emt 0:02:08]} 21. Ne1 {[%emt 0:08:29]} Qf8 {[%emt 0:06:17]} 22. f4 {[%emt 0:02:48]} exf4 {[%emt 0:00:04]} 23. Bxf4 {[%emt 0:01:26]} Bd6 {[%emt 0:01:40]} 24. Nef3 {[%emt 0:05:45]} g5 {[%emt 0:00:27]} 25. Bxd6 {[%emt 0:02:00]} Qxd6 {[%emt 0:00:02]} 26. g4 {[%emt 0:04:35]} f6 {[%emt 0:01:07]} 27. Rf1 {[%emt 0:01:29]} Rbf8 {[%emt 0:00:34]} 28. Rf2 {[%emt 0:04:04]} Nde5 {[%emt 0:01:31]} 29. Nxe5 {[%emt 0:00:16]} fxe5 {[%emt 0:01:20]} 30. Nf1 {[%emt 0:01:32]} Rxf2 {[%emt 0:00:41]} 31. Qxf2 {[%emt 0:00:47]} Ne7 {[%emt 0:03:11]} 32. Ng3 {[%emt 0:00:34]} Ng6 {[%emt 0:00:09]} 33. Nf5 {[%emt 0:00:49]} Qd7 {[%emt 0:04:22]} 34. Qd2 {[%emt 0:03:48]} Nf4 {[%emt 0:00:26]} 35. Bf1 {[%emt 0:00:39]} h5 {[%emt 0:00:47]} 36. b4 {[%emt 0:00:56]} Rh8 {[%emt 0:04:07]} 37. bxc5 {[%emt 0:00:51]} Kg6 {[%emt 0:02:45]} 38. Ra2 {[%emt 0:01:33]} Kf6 {[%emt 0:00:53]} 39. Qf2 {[%emt 0:07:05]} hxg4 {[%emt 0:03:09]} 40. hxg4 {[%emt 0:00:00]} Bxf5 {[%emt 0:00:00]} 41. gxf5 {[%emt 0:02:04]} Nh3+ {[%emt 0:12:54]} 42. Bxh3 {[%emt 0:00:13]} Rxh3 {[%emt 0:00:02]} 43. Qg2 {[%emt 0:03:04]} Qh7 {[%emt 0:00:09]} 44. Rf2 {[%emt 0:00:33]} Qh5 {[%emt 0:05:49]} 45. a5 {[%emt 0:00:41]} a6 {[%emt 0:00:44]} 46. Rb2 {[%emt 0:00:14]} Qh4 {[%emt 0:03:51]} 47. Rb6+ {[%emt 0:00:18]} Ke7 {[%emt 0:00:44]} 48. Rxb7+ {[%emt 0:00:55]} Kd8 {[%emt 0:00:13]} 49. c6 {[%emt 0:02:01]} Qe1+ {[%emt 0:00:26]} 50. Qf1 {[%emt 0:00:05]} Rh1+ {[%emt 0:02:27]} 51. Kxh1 {[%emt 0:00:05]} Qxf1+ {[%emt 0:00:03]} 52. Kh2 {[%emt 0:00:01]} Qf2+ {[%emt 0:00:06]} 53. Kh3 {[%emt 0:00:09]} Qf3+ {[%emt 0:00:03]} 54. Kh2 {[%emt 0:00:04]} g4 {[%emt 0:00:10]} 0-1

[Event "RUS-chT Premier 2019"]
[Site "Sochi"]
[Date "2019.05.09"]
[Round "8.27"]
[White "Chernobay, Artem"]
[Black "Timofeev, Artyom"]
[Result "1/2-1/2"]
[ECO "B45"]
[WhiteElo "2503"]
[BlackElo "2602"]
[Annotator "ChessBase"]
[PlyCount "59"]
[EventDate "2019.05.01"]
[EventType "team-tourn"]
[EventCountry "RUS"]
[SourceTitle "playchess.com"]
[Source "ChessBase"]
[SourceQuality "1"]
[TimeControl "40/5400+30:1800+30"]

1. e4 {[%emt 0:00:00]} c5 {[%emt 0:00:56]} 2. Nf3 {[%emt 0:00:00]} e6 {[%emt 0:00:33]} 3. d4 {[%emt 0:00:22]} cxd4 {[%emt 0:00:07]} 4. Nxd4 {[%emt 0:00:03]} Nc6 {[%emt 0:00:08]} 5. Nc3 {[%emt 0:00:33]} d6 {[%emt 0:00:24]} 6. g4 {[%emt 0:05:49]} a6 {[%emt 0:01:32]} 7. Rg1 {[%emt 0:01:59]} Nge7 {[%emt 0:06:51]} 8. Be3 {[%emt 0:02:38]} Bd7 {[%emt 0:06:24]} 9. Qd2 {[%emt 0:07:41]} Nxd4 {[%emt 0:02:34]} 10. Qxd4 {[%emt 0:00:51]} Nc6 {[%emt 0:00:44]} 11. Qd2 {[%emt 0:01:13]} Be7 {[%emt 0:08:25]} 12. g5 {[%emt 0:02:00]} Qa5 {[%emt 0:09:22]} 13. O-O-O {[%emt 0:16:30]} b5 {[%emt 0:03:36]} 14. Kb1 {[%emt 0:00:48]} O-O {[%emt 0:20:43]} 15. f4 {[%emt 0:00:41]} Rfc8 {[%emt 0:02:31]} 16. Bh3 {[%emt 0:12:55]} Rc7 {[%emt 0:05:05]} 17. f5 {[%emt 0:10:39]} b4 {[%emt 0:03:12]} 18. Ne2 {[%emt 0:00:05]} exf5 {[%emt 0:02:52]} 19. exf5 {[%emt 0:06:25]} b3 {[%emt 0:04:41]} 20. Qxa5 {[%emt 0:03:53]} bxc2+ {[%emt 0:00:07]} 21. Kxc2 {[%emt 0:00:01]} Nxa5+ {[%emt 0:00:08]} 22. Kb1 {[%emt 0:00:05]} Rb8 {[%emt 0:03:54]} 23. Bd4 {[%emt 0:01:35]} g6 {[%emt 0:04:09]} 24. Nc3 {[%emt 0:02:11]} Nc4 {[%emt 0:02:00]} 25. Nd5 {[%emt 0:09:38]} Na3+ {[%emt 0:00:45]} 26. Ka1 {[%emt 0:00:03]} Nc2+ {[%emt 0:00:10]} 27. Kb1 {[%emt 0:00:02]} Na3+ {[%emt 0:00:20]} 28. Ka1 {[%emt 0:00:04]} Nc2+ {[%emt 0:00:07]} 29. Kb1 {[%emt 0:00:02]} Na3+ {[%emt 0:00:08]} 30. Ka1 {[%emt 0:00:04]} 1/2-1/2

[Event "RUS-chT Premier 2019"]
[Site "Sochi"]
[Date "2019.05.09"]
[Round "8.28"]
[White "Faizrakhmanov, Ramil"]
[Black "Bykov, Oleg"]
[Result "0-1"]
[ECO "E15"]
[WhiteElo "2438"]
[BlackElo "2395"]
[Annotator "ChessBase"]
[PlyCount "98"]
[EventDate "2019.05.01"]
[EventType "team-tourn"]
[EventCountry "RUS"]
[SourceTitle "playchess.com"]
[Source "ChessBase"]
[SourceQuality "1"]
[TimeControl "40/5400+30:1800+30"]

1. d4 {[%emt 0:00:00]} Nf6 {[%emt 0:00:00]} 2. c4 {[%emt 0:00:00]} e6 {[%emt 0:00:23]} 3. Nf3 {[%emt 0:00:16]} b6 {[%emt 0:00:07]} 4. g3 {[%emt 0:00:58]} Bb4+ {[%emt 0:00:09]} 5. Bd2 {[%emt 0:00:42]} Be7 {[%emt 0:00:07]} 6. Bg2 {[%emt 0:02:22]} c6 {[%emt 0:00:07]} 7. O-O {[%emt 0:03:02]} O-O {[%emt 0:00:11]} 8. Nc3 {[%emt 0:03:47]} d5 {[%emt 0:00:10]} 9. cxd5 {[%emt 0:04:59]} cxd5 {[%emt 0:00:11]} 10. Rc1 {[%emt 0:01:31]} Bb7 {[%emt 0:03:09]} 11. Ne5 {[%emt 0:02:56]} Nbd7 {[%emt 0:01:06]} 12. Nd3 {[%emt 0:01:38]} Rc8 {[%emt 0:04:55]} 13. Bf4 {[%emt 0:08:08]} Nb8 {[%emt 0:11:33]} 14. Bxb8 {[%emt 0:03:24]} Rxb8 {[%emt 0:00:11]} 15. Qa4 {[%emt 0:01:26]} a6 {[%emt 0:03:17]} 16. Qb3 {[%emt 0:03:38]} Qd6 {[%emt 0:03:58]} 17. Ne5 {[%emt 0:11:58]} b5 {[%emt 0:05:49]} 18. Nd3 {[%emt 0:08:05]} Nd7 {[%emt 0:03:50]} 19. e3 {[%emt 0:01:23]} Rfc8 {[%emt 0:06:01]} 20. Qd1 {[%emt 0:00:53]} Bc6 {[%emt 0:12:54]} 21. b4 {[%emt 0:09:57]} a5 {[%emt 0:00:54]} 22. a3 {[%emt 0:01:55]} Nb6 {[%emt 0:00:57]} 23. Nc5 {[%emt 0:02:23]} Nc4 {[%emt 0:01:46]} 24. Nb1 {[%emt 0:00:16]} Rd8 {[%emt 0:08:39]} 25. Qb3 {[%emt 0:06:09]} Ra8 {[%emt 0:05:58]} 26. Rfd1 {[%emt 0:00:55]} Qc7 {[%emt 0:03:23]} 27. Nc3 {[%emt 0:01:50]} axb4 {[%emt 0:07:25]} 28. axb4 {[%emt 0:00:10]} Ra3 {[%emt 0:00:13]} 29. Qc2 {[%emt 0:01:27]} Qa7 {[%emt 0:05:37]} 30. Re1 {[%emt 0:06:31]} Qa8 {[%emt 0:02:03]} 31. Rcd1 {[%emt 0:01:19]} g6 {[%emt 0:02:12]} 32. Bf1 {[%emt 0:01:28]} Kg7 {[%emt 0:02:43]} 33. h4 {[%emt 0:00:24]} e5 {[%emt 0:03:56]} 34. Bg2 {[%emt 0:07:22]} e4 {[%emt 0:01:59]} 35. Rc1 {[%emt 0:01:52]} Qa7 {[%emt 0:00:30]} 36. f3 {[%emt 0:00:44]} Bxc5 {[%emt 0:00:57]} 37. dxc5 {[%emt 0:00:59]} exf3 {[%emt 0:00:29]} 38. Bxf3 {[%emt 0:00:23]} d4 {[%emt 0:00:21]} 39. Bxc6 {[%emt 0:00:57]} Rxc3 {[%emt 0:00:16]} 40. Qe4 {[%emt 0:00:00]} Rxc1 {[%emt 0:00:00]} 41. Rxc1 {[%emt 0:01:22]} Nxe3 {[%emt 0:24:32]} 42. Qe5+ {[%emt 0:08:19]} Kg8 {[%emt 0:02:46]} 43. h5 {[%emt 0:08:36]} Qa3 {[%emt 0:00:42]} 44. Rb1 {[%emt 0:00:54]} Qa2 {[%emt 0:01:04]} 45. Re1 {[%emt 0:02:28]} Qd2 {[%emt 0:00:51]} 46. Ra1 {[%emt 0:05:03]} Ng4 {[%emt 0:00:30]} 47. Qf4 {[%emt 0:00:57]} Qh2+ {[%emt 0:00:05]} 48. Kf1 {[%emt 0:00:02]} Ne3+ {[%emt 0:00:11]} 49. Ke1 {[%emt 0:00:06]} Qg1+ {[%emt 0:00:48]} 0-1